Cogmind - Beta 12 @@@ ROGUE MODE // 2024.01.13 @ 18:47:44 Player: ILikeVoltron Result: Self-destructed Performance ------------- Evolutions (1) 500 Regions Visited (2) 400 Robots Destroyed (18) 90 Value Destroyed (594) 594 Prototype IDs (3) 60 Alien Tech Used (0) 0 Bonus (0) 0 TOTAL SCORE: 1644 Bonus ------- None Cogmind --------- Core Integrity 186/400 Matter 255/300 Energy 250/250 System Corruption 5% Temperature Cool (0) Movement Treading (160) Location -9/Materials Parts ------- > --- POWER (1) -------- Ion Engine > --- PROPULSION (3) --- Improved Treads Improved Treads > --- UTILITY (2) ------ Medium Storage Unit Light Armor Plating > --- WEAPON (3) ------- Autogun Autogun Autogun > --- INVENTORY (10) --- Light Ion Engine Large Storage Unit Structural Scanner Visual Processing Unit Sensor Array Shield Generator Small Laser Assault Rifle Autogun Katana Peak State ------------ > --- POWER ------------ Light Ion Engine > --- PROPULSION ------- Improved Treads Improved Treads Improved Treads > --- UTILITY ---------- Small Storage Unit Light Armor Plating > --- WEAPON ----------- Improved EM Shotgun Assault Rifle Light Assault Rifle > --- INVENTORY -------- Light Ion Engine Improved Treads Improved Treads Structural Scanner Visual Processing Unit Utility Shielding Small Laser [Rating: 15] Favorites ----------- Power Light Ion Engine Engine Light Ion Engine Propulsion Improved Treads Treads Improved Treads Leg Aluminum Leg Utility Small Storage Unit Device Sensor Array Storage Small Storage Unit Protection Light Armor Plating Weapon Assault Rifle Energy Gun Small Laser Ballistic Gun Assault Rifle Build | -11 -10 -9 ------- Run | Jun Mat Mat Slots Evolved 2 | . . 2 Power . | . . . Propulsion 1 | . . 1 Utility . | . . . Weapon 1 | . . 1 Parts Attached 28 | . 1 27 Power 2 | . . 2 Engine 2 | . . 2 Core . | . . . Reactor . | . . . Propulsion 8 | . . 8 Treads 8 | . . 8 Leg . | . . . Wheel . | . . . Hover . | . . . Flight . | . . . Utility 9 | . 1 8 Device 1 | . . 1 Storage 2 | . . 2 Processor . | . . . Hackware . | . . . Protection 6 | . 1 5 Artifact . | . . . Weapon 9 | . . 9 Energy Gun 5 | . . 5 Energy Cannon . | . . . Ballistic Gun 4 | . . 4 Ballistic Cannon . | . . . Launcher . | . . . Special Weapon . | . . . Impact Weapon . | . . . Slashing Weapon . | . . . Piercing Weapon . | . . . Special Melee Weapon . | . . . Unidentified Prototypes 1 | . . 1 Parts Lost 9 | . . 9 Power 2 | . . 2 Propulsion 3 | . . 3 Utility 1 | . . 1 Weapon 3 | . . 3 Highest Loss Streak 4 | . . 4 To Critical Strikes . | . . . Average Slot Usage (%) 89 | . 95 87 Engine 9 | . 14 8 Treads 21 | . . 26 Leg 7 | . 28 1 Device 1 | . . 1 Storage 11 | . 14 11 Protection 9 | . 9 9 Energy Gun 6 | . . 7 Ballistic Gun 22 | . 28 21 Naked Turns . | . . . Heaviest Build 31 | 11 12 31 Greatest Support 69 | 20 20 69 Greatest Overweight (x) . | . . . Average Overweight (x) . | . . . Largest Inventory Capacity 15 | . 8 15 Average Capacity 8 | . 8 8 Most Carried 10 | . 7 10 Average Carried 7 | . 6 7 Final Capacity 10 | 8 8 10 Final Carried 10 | 6 7 10 Class Distribution -------------------- 44% | Mutant 35% | Tank 11% | Skirmisher 5% | Scavenger-Tank 3% | Gunner Dominant Class ---------------- Mutant | -10/Materials Tank | -9/Materials Resources | -11 -10 -9 ----------- Run | Jun Mat Mat Matter Collected 716 | 200 94 422 Remotely . | . . . Salvage Created 884 | . 212 672 Parts 42 | . 5 37 Haulers Intercepted . | . . . Recyclers Shooed 3 | . 1 2 Parts Field Recycled . | . . . Retrieved Matter . | . . . Parts Self-Destructed . | . . . Prevented . | . . . Kills | -11 -10 -9 ------- Run | Jun Mat Mat Combat Hostiles Destroyed 12 | . 3 9 Guns 12 | . 3 9 Classes Destroyed 6 | . 2 4 Worker 1 | . . 1 Recycler 3 | . 1 2 Watcher 2 | . . 2 Grunt 5 | . 3 2 Duelist 1 | . . 1 Sentry 6 | . . 6 Best Kill Streak 4 | . 2 4 Combat Bots Only 3 | . 2 3 Max Kills in Single Turn 1 | . 1 1 Gunslinging . | . . . Exploded . | . . . Melee . | . . . Uniques/NPCs Destroyed . | . . . Combat | -11 -10 -9 -------- Run | Jun Mat Mat Damage Taken 1699 | . 298 1401 Core 301 | . 87 214 Absorbed by Shields . | . . . Core Remaining (%) 82 | 100 65 . Volleys Fired 63 | . 21 42 Largest 3 | . 2 3 Hottest 119 | . 40 119 Shots Fired 165 | . 42 123 Gun 165 | . 42 123 Cannon . | . . . Launcher . | . . . Special . | . . . Kinetic 131 | . 42 89 Thermal 21 | . . 21 Explosive . | . . . Electromagnetic 13 | . . 13 Robot Hit Streak 14 | . 6 14 Robot Miss Streak 3 | . 1 3 Penetration Max . | . . . Secondary Targets 2 | . . 2 Max Gunslinging Chain 1 | . . 1 Shots Hit Robots 118 | . 28 90 Core Hits 42 | . 11 31 Critical Kills . | . . . Critical Parts Destroyed 1 | . . 1 Critical Strikes 1 | . . 1 Destroy 1 | . . 1 Melee Attacks . | . . . Impact . | . . . Slashing . | . . . Piercing . | . . . Sneak Attacks . | . . . Combat Hostiles . | . . . Follow-up Attacks . | . . . Damage Inflicted 1517 | . 313 1204 Guns 1386 | . 313 1073 Cannons . | . . . Explosions 129 | . . 129 Melee . | . . . Ramming 2 | . . 2 Kinetic 1086 | . 313 773 Thermal 187 | . . 187 Explosive 75 | . . 75 Electromagnetic 167 | . . 167 Impact . | . . . Slashing . | . . . Piercing . | . . . Highest Corruption 5 | . 1 5 Average Corruption 3 | . 1 5 Corruption Purged . | . . . Corruption Blocked . | . . . Effects 4 | . . 4 Matter Fused 1 | . . 1 Energy Discharges 2 | . . 2 Data Loss (minor) 1 | . . 1 Overload Shots . | . . . Overflow Damage 25 | . . 25 Projectiles . | . . . Explosions 25 | . . 25 Melee . | . . . Knockbacks . | . . . Impact . | . . . Kinetic . | . . . Secondary . | . . . Self-Inflicted Damage 273 | . . 273 Shots 3 | . . 3 Rammed 1 | . . 1 Targets Rammed 1 | . . 1 Kicked . | . . . Crushed . | . . . Highest Temperature 93 | . 18 93 Average Temperature 25 | . 9 28 Received Heat Transfer 405 | . 138 267 Siege Activations . | . . . Robots Corrupted . | . . . Combat Hostiles . | . . . Parts Fried . | . . . Impact Corruptions . | . . . Robots Melted . | . . . Combat Hostiles . | . . . Parts Melted . | . . . Heat Transferred 350 | . . 350 Parts Sabotaged . | . . . Parts Stolen . | . . . Parts Stripped . | . . . Power Chain Reactions 1 | . . 1 Missiles Intercepted . | . . . Alert | -11 -10 -9 ------- Run | Jun Mat Mat Peak Influence 227 | . 115 227 Initial 48 | . . 48 Average 107 | . 37 125 Maximum Alert Level 1 | . . 1 Low Security (%) 87 | . 100 84 Level 1 12 | . . 15 Level 2 . | . . . Level 3 . | . . . Level 4 . | . . . Level 5 . | . . . High Security . | . . . Max Security . | . . . Squads Dispatched 2 | . 1 1 Investigation . | . . . Extermination . | . . . Reinforcement 2 | . 1 1 Assault . | . . . Garrison . | . . . Intercept . | . . . Searches Triggered . | . . . Construction Impeded . | . . . Haulers Reinforced . | . . . Active Scanning Responses . | . . . Cargo Convoy Interrupts . | . . . Stealth | -11 -10 -9 --------- Run | Jun Mat Mat Distress Signals 7 | . 5 2 Communications Jammed . | . . . Distress Signals . | . . . Times Spotted 32 | . 12 20 Peak Tracking Total 6 | . 6 5 Tactical Retreats 1 | . 1 . Traps | -11 -10 -9 ------- Run | Jun Mat Mat Traps Triggered 3 | . 1 2 Indirectly . | . . . Trap Hack Attempts . | . . . Triggered . | . . . Disarmed . | . . . Reprogrammed . | . . . Reused . | . . . Traps Extracted . | . . . Installed . | . . . Triggered . | . . . Machines | -11 -10 -9 ---------- Run | Jun Mat Mat Machines Disabled 3 | . . 3 Max in Single Turn 2 | . . 2 Machines Repaired . | . . . Machines Sabotaged . | . . . Overloaded Fab Kills . | . . . Hacking | -11 -10 -9 --------- Run | Jun Mat Mat Machines Accessed 7 | . . 7 Terminals 6 | . . 6 Fabricators . | . . . Repair Stations . | . . . Recycling Units . | . . . Scanalyzers 1 | . . 1 Garrison Access . | . . . Total Hacks 11 | . . 11 Successful 8 | . . 8 Failed 3 | . . 3 Catastrophic 3 | . . 3 Database Lockouts . | . . . Manual 1 | . . 1 Terminals 8 | . . 8 Fabricators . | . . . Repair Stations . | . . . Recycling Units . | . . . Scanalyzers 3 | . . 3 Garrison Access . | . . . Terminal Hacks 5 | . . 5 Record 1 | . . 1 Prototype ID Bank 1 | . . 1 Level Access Points 1 | . . 1 Alert Level 1 | . . 1 Locate Traps 1 | . . 1 Fabricator Hacks . | . . . Repair Station Hacks . | . . . Recycling Unit Hacks . | . . . Scanalyzer 3 | . . 3 Insert Component 1 | . . 1 Analyze 2 | . . 2 Garrison Access Hacks . | . . . Unauthorized Hacks . | . . . Terminals . | . . . Fabricators . | . . . Repair Stations . | . . . Recycling Units . | . . . Scanalyzers . | . . . Garrison Access . | . . . Data Cores Recovered . | . . . Used . | . . . Hacking Detections 4 | . . 4 Full Trace Events . | . . . Feedback Events . | . . . Feedback Blocked . | . . . Robot Schematics Acquired . | . . . Robots Built . | . . . Authchips . | . . . Time . | . . . Total Robot Build Rating . | . . . Part Schematics Acquired 1 | . . 1 Parts Built . | . . . Authchips . | . . . Time . | . . . Total Part Build Rating . | . . . Parts Repaired . | . . . Time . | . . . Parts Recycled . | . . . Recycled Matter . | . . . Retrieved Matter . | . . . Retrieved Components . | . . . Parts Scanalyzed 1 | . . 1 Part Schematics Acquired 1 | . . 1 Parts Damaged . | . . . Bothacking | -11 -10 -9 ------------ Run | Jun Mat Mat Used RIF Installer . | . . . Robots Hacked . | . . . Non-combat . | . . . Combat . | . . . Robot Hacks Applied . | . . . Relay Couplers Released . | . . . Fabnet Peak Effective % . | . . . Robots Rewired . | . . . Allies Hacked . | . . . Hacks Repelled . | . . . Allies | -11 -10 -9 -------- Run | Jun Mat Mat Total Allies . | . . . Largest Group . | . . . Highest-Rated Group . | . . . Highest-Rated Ally . | . . . Total Orders . | . . . Ally Attacks . | . . . Total Damage . | . . . Kills . | . . . Allies Corrupted . | . . . Allies Melted . | . . . Intel | -11 -10 -9 ------- Run | Jun Mat Mat Robot Analysis Total . | . . . Derelict Logs Recovered . | . . . Drone Launches . | . . . Drone Recoveries . | . . . Exploration | -11 -10 -9 ------------- Run | Jun Mat Mat Turns Passed 814 | . 164 650 Spaces Moved 383 | 1 78 304 Core . | . . . Treads 263 | . . 263 Legs 120 | 1 78 41 Wheels . | . . . Hover . | . . . Flight . | . . . Fastest Speed 120 | 120 120 120 Average Speed 147 | 120 120 154 Slowest Speed 160 | 120 120 160 Overloaded Moves . | . . . Propulsion Burnouts . | . . . Robots Hopped . | . . . Cave-ins Triggered 1 | . . 1 Exploration Rate (%) 18 | 2 23 31 Regions Visited 2 Branch Regions . Pre-discovered Areas . | . . . Known Exits Taken . | . . . Unknown Exits Taken 2 | 1 1 . Scrap Searched . | . . . Spaces Dug . | . . . Terrain Destroyed 44 | . . 44 Melee . | . . . Projectile . | . . . AOE 44 | . . 44 Terrain Rammed . | . . . Walls Destroyed . | . . . Machines Disabled . | . . . Actions | -11 -10 -9 --------- Run | Jun Mat Mat Total 507 | . 110 397 Wait 10 | . 10 . Move 381 | . 77 304 Hop . | . . . Pick Up 11 | . 1 10 Fast Attach 17 | . 1 16 Attach 4 | . . 4 Detach 2 | . . 2 Swap 7 | . . 7 Drop 11 | . . 11 Fire 63 | . 21 42 Melee . | . . . Ram . | . . . Kick . | . . . Crush 1 | . . 1 Escape Stasis . | . . . Rewire . | . . . Trap . | . . . Miscellaneous . | . . . Route ------- -11/Junkyard -10/Materials -9/Materials (discovered 3 exits: Mat x3) History --------- Turn | Location | Event 1 | -11/Junkyard | Discovered new exit (range 0) 1 | -11/Junkyard | Entered Materials 147 | -10/Materials | Discovered new exit (range 15) 165 | -10/Materials | Entered another Materials area 165 | -9/Materials | Evolved 2 slots: Propulsion x1, Weapon x1 302 | -9/Materials | Build established: Mutant 308 | -9/Materials | Identified exit to Materials 627 | -9/Materials | Crushed by falling debris 658 | -9/Materials | Lost 3 parts (1n2w) 744 | -9/Materials | Core integrity fell below 50% 779 | -9/Materials | Lost 4 parts (1p2n1w) 815 | -9/Materials | Self-destructed Last Messages --------------- 00730_ System corrupted: Matter fused (-8). 00731_ Dropped Beam Rifle. 00733_ Acquired Autogun. 00737_ Hvy. Assault Rifle destroyed. 00739_ Acquired Autogun. 00741_ Imp. Treads destroyed. 00745_ L-31 Rogue destroyed. 00745_ Switching to secondary target: Y-45 Defender. 00747_ G-34 Mercenary destroyed. 00748_ Imp. Treads destroyed. 00758_ Y-45 Defender destroyed. 00761_ Acquired 48 matter. 00765_ Acquired Ion Engine. 00769_ Acquired 33 matter. 00778_ Acquired Katana. 00778_ R-06 Scavenger collects Heat Sink. 00780_ System corrupted: Energy discharge (-41). 00784_ Acquired 57 matter. 00790_ Acquired Autogun. 00799_ Connecting with Terminal... Map ----- +----------------------------------------------------+ | ??????????????????????????????????????? | | ??????????????????????????????????????? | | #?????????????????????????????????????? | | #????????????????????????????????????? | | #??????????????????????? ??????????? | | #??????????????????????# #?????????? | | ???????????????????????# +?????????? | | ???????????????????????+ #?????????? | | #???????????????????????# #?????????? | | #???????????????????????# #?????????? | | #???????????????????????# #?????????? | | #???????????????????????# #?????????? | | #?#########?????????????# +?????????? | | #### ### #############?# #?????????? | | # # #?# ####??????? | | # # """ #?# !##?????? | | # """ # "R #?# !#?????? | | + """ # """ !#?# !#?????? | | # """ # #?# !#?????? | | # %= #? ??#! #?????? | | # # ## /######+###?# !##?????? | | # # # #### #?#% ####??????? | | ## # ## ### s#?????????? | | ?### #### !% s #?????????? | | ???##???# !! ####/#####??????? | | ????????# ####### # @ #??????? | | ????????# #?????#######" #??????? | | ????????# #???????????#T [ #??????? | | ????????# #???????????#" [[[ #??????? | | ????????# #???????????# [ #??????? | | ????????# ???????????# ! #??????? | | ????????? #???????????# m #??????? | | ????????? ????????????# #??????? | | ????????? ????????????# ! #??????? | | ????????? ????????????### ######??????? | | ????????? ??????????????###???????????? | | ????????? ????????????????????????????? | | ????????? ????????????????????????????? | | ??????????????????????????????????????? | | ??????????????????????????????????????? | | ??????????????????????????????????????? | | ??????????????????????????????????????? | | ##????????????????????????????????????? | | #????????????????????????????????????? | | #????????????????????????????????????? | | #????????????????????????????????????? | | #????????????????????????????????????? | | #????????????????????????????????????? | | #????????????????????????????????????? | | #????????????????????????????????????? | +----------------------------------------------------+ Best States ------------- Heat Dissipation 28 Energy Generation 10 Energy Capacity 250 Matter Stores 300 Matter Capacity 300 Sight Range 16 Robot Scan Range 14 Terrain Scan Density 10 Armor Coverage 150 Utility Shielding 33 Evasion (%) 55 Recoil Reduction 3 Item Schematics ----------------- Lgt. Armor Plating | -9/Materials | Scanalyzed Robot Schematics ------------------ None Fabricated ------------ Nothing Alien Tech Used ----------------- None Achievements -------------- None Challenges ------------ None Game ------ Seed PhysicsNullFlamer Manual? 0 Play Time 00:10:46 Cumulative 99.6 hours Start 2024.01.13 @ 18:38:37 End 2024.01.13 @ 18:47:44 Sessions 1 Manual Loads 0 Difficulty Rogue Special Mode None Game No. 156 Rogue 152 Adventurer 0 Explorer 4 Win Type - Total 0 Types 0/0/0/0/0/0/0/0/0 Lore% 25 Gallery% 42 Achievement% 33 Wizard Run 0 Options --------- ASCII 0 Keyboard 1 Movement Arrows Keybinds 0 Fullscreen 2 Font 24/Smallcaps Map View 113x50 Tactical HUD 1 Map Filters NONE Filters NONE Steam 1 RUN: b6ee4e51-ce20-46ec-94a3-70fc0f48fc96